[Event "Early-Titled-Tuesday-Blitz-February-13-2024"]
[Site "Chess.com"]
[Date "2024.02.13"]
[Round "5"]
[White "CSB7"]
[Black "Antipov_Mikhail_Al"]
[Result "1-0"]
[WhiteElo "2768"]
[BlackElo "2942"]
[TimeControl "180+1"]
[EndTime "9:00:43 PST"]
[Termination "CSB7 won on time"]

1. d4 {[%clk 0:03:00.9]} 1... Nf6 {[%clk 0:02:56.9]} 2. c4 {[%clk 0:03:00.2]}
2... e6 {[%clk 0:02:40.5]} 3. Nf3 {[%clk 0:02:56.4]} 3... d5 {[%clk 0:02:39.4]}
4. g3 {[%clk 0:02:52.9]} 4... Bb4+ {[%clk 0:02:36.3]} 5. Nbd2 {[%clk 0:02:51.7]}
5... O-O {[%clk 0:02:34.7]} 6. Bg2 {[%clk 0:02:52.1]} 6... b6 {[%clk 0:02:28.5]}
7. O-O {[%clk 0:02:50.6]} 7... Bb7 {[%clk 0:02:26.7]} 8. cxd5 {[%clk 0:02:51]}
8... exd5 {[%clk 0:02:23.6]} 9. a3 {[%clk 0:02:51.4]} 9... Bxd2 {[%clk
0:02:00.1]} 10. Bxd2 {[%clk 0:02:26.5]} 10... Nbd7 {[%clk 0:01:58.2]} 11. Rc1
{[%clk 0:02:24.7]} 11... Re8 {[%clk 0:01:50.2]} 12. Bf4 {[%clk 0:02:08.3]} 12...
c5 {[%clk 0:01:43.1]} 13. dxc5 {[%clk 0:02:09.2]} 13... bxc5 {[%clk 0:01:41.1]}
14. Qc2 {[%clk 0:02:02]} 14... Rc8 {[%clk 0:01:32.5]} 15. Rfd1 {[%clk
0:01:59.9]} 15... Qe7 {[%clk 0:01:27]} 16. Re1 {[%clk 0:01:24.8]} 16... h6
{[%clk 0:01:07.5]} 17. Nh4 {[%clk 0:01:17.5]} 17... Qe6 {[%clk 0:00:53.5]} 18.
Nf5 {[%clk 0:01:12.8]} 18... Rc6 {[%clk 0:00:54.1]} 19. Rcd1 {[%clk 0:01:08.3]}
19... Nb6 {[%clk 0:00:40.4]} 20. h4 {[%clk 0:01:04.4]} 20... Bc8 {[%clk
0:00:24.5]} 21. Ne3 {[%clk 0:00:46.7]} 21... d4 {[%clk 0:00:11.4]} 22. Bxc6
{[%clk 0:00:24]} 22... Qxc6 {[%clk 0:00:12.3]} 23. Nc4 {[%clk 0:00:24.1]} 23...
Bb7 {[%clk 0:00:04.5]} 24. f3 {[%clk 0:00:23]} 24... Nh5 {[%clk 0:00:03.8]} 25.
Nxb6 {[%clk 0:00:18.9]} 25... axb6 {[%clk 0:00:03.3]} 26. Qd2 {[%clk 0:00:16.5]}
26... Qg6 {[%clk 0:00:03.4]} 27. Kf2 {[%clk 0:00:16]} 27... Re3 {[%clk
0:00:02.8]} 28. Bxe3 {[%clk 0:00:11.5]} 28... Qxg3+ {[%clk 0:00:02.8]} 29. Kf1
{[%clk 0:00:11.9]} 29... Qh3+ {[%clk 0:00:02.6]} 30. Kg1 {[%clk 0:00:12.1]}
30... Qg3+ {[%clk 0:00:02.3]} 31. Kf1 {[%clk 0:00:12.5]} 31... Qh2 {[%clk
0:00:01.4]} 32. Bf2 {[%clk 0:00:05.9]} 32... Qh1+ {[%clk 0:00:01.7]} 33. Bg1
{[%clk 0:00:05.9]} 33... Qh3+ {[%clk 0:00:02.3]} 34. Kf2 {[%clk 0:00:06.4]}
34... Qxh4+ {[%clk 0:00:01.7]} 35. Kf1 {[%clk 0:00:04]} 35... Qh3+ {[%clk
0:00:02.1]} 36. Kf2 {[%clk 0:00:04.3]} 36... Qg3+ {[%clk 0:00:03]} 37. Kf1
{[%clk 0:00:04.6]} 37... Qh3+ {[%clk 0:00:03.3]} 38. Kf2 {[%clk 0:00:05.1]}
38... Ng3 {[%clk 0:00:04.1]} 39. Rf1 {[%clk 0:00:03.5]} 39... Qh4 {[%clk
0:00:03.1]} 40. Kg2 {[%clk 0:00:03.7]} 40... Bc8 {[%clk 0:00:03.4]} 41. f4
{[%clk 0:00:03.4]} 41... Bb7+ {[%clk 0:00:03.1]} 42. Rf3 {[%clk 0:00:02.6]}
42... Nf5 {[%clk 0:00:03.5]} 43. Qe1 {[%clk 0:00:02.7]} 43... Qg4+ {[%clk
0:00:03.7]} 44. Kf2 {[%clk 0:00:03.3]} 44... Bxf3 {[%clk 0:00:03.5]} 45. exf3
{[%clk 0:00:04.2]} 45... Qg3+ {[%clk 0:00:03.3]} 46. Ke2 {[%clk 0:00:04.6]}
46... Qxf4 {[%clk 0:00:03.6]} 47. Qf2 {[%clk 0:00:03.9]} 47... c4 {[%clk
0:00:03.7]} 48. Rxd4 {[%clk 0:00:03.7]} 48... Qc1 {[%clk 0:00:03.1]} 49. Rd2
{[%clk 0:00:03.3]} 49... b5 {[%clk 0:00:02.8]} 50. Qe1 {[%clk 0:00:03.9]} 50...
Qxe1+ {[%clk 0:00:01.4]} 51. Kxe1 {[%clk 0:00:04.8]} 1-0

[Event "Early-Titled-Tuesday-Blitz-February-13-2024"]
[Site "Chess.com"]
[Date "2024.02.13"]
[Round "5"]
[White "WindWhistler11"]
[Black "GulamaliRises"]
[Result "0-1"]
[WhiteElo "2496"]
[BlackElo "2640"]
[TimeControl "180+1"]
[EndTime "9:00:43 PST"]
[Termination "GulamaliRises won by resignation"]

1. c4 {[%clk 0:03:00.9]} 1... e5 {[%clk 0:02:54]} 2. Nc3 {[%clk 0:02:59.9]} 2...
Nf6 {[%clk 0:02:54.5]} 3. Nf3 {[%clk 0:03:00.1]} 3... Nc6 {[%clk 0:02:54.6]} 4.
e4 {[%clk 0:03:00.7]} 4... Bb4 {[%clk 0:02:42.4]} 5. d3 {[%clk 0:02:54.5]} 5...
Bxc3+ {[%clk 0:02:38]} 6. bxc3 {[%clk 0:02:52.7]} 6... d6 {[%clk 0:02:38.9]} 7.
g3 {[%clk 0:02:45.4]} 7... h6 {[%clk 0:02:23.4]} 8. Bg2 {[%clk 0:02:43.7]} 8...
Ne7 {[%clk 0:02:15.9]} 9. O-O {[%clk 0:02:42.4]} 9... O-O {[%clk 0:02:02.3]} 10.
Nh4 {[%clk 0:02:31.9]} 10... g5 {[%clk 0:01:59.4]} 11. Nf3 {[%clk 0:02:27.7]}
11... Kg7 {[%clk 0:01:58.5]} 12. Ne1 {[%clk 0:02:16.7]} 12... Ng6 {[%clk
0:00:58.5]} 13. Nc2 {[%clk 0:02:03.3]} 13... Ng8 {[%clk 0:00:41.5]} 14. Ne3
{[%clk 0:01:30.3]} 14... c6 {[%clk 0:00:41.5]} 15. Rb1 {[%clk 0:01:24.4]} 15...
b6 {[%clk 0:00:40.7]} 16. Nf5+ {[%clk 0:01:19.9]} 16... Bxf5 {[%clk 0:00:40]}
17. exf5 {[%clk 0:01:20.8]} 17... N6e7 {[%clk 0:00:40.7]} 18. f4 {[%clk
0:01:17.7]} 18... f6 {[%clk 0:00:32.7]} 19. Qg4 {[%clk 0:01:05.5]} 19... Qe8
{[%clk 0:00:28.9]} 20. Bf3 {[%clk 0:00:55.6]} 20... Kh7 {[%clk 0:00:20.7]} 21.
h4 {[%clk 0:00:32]} 21... h5 {[%clk 0:00:17.2]} 22. Qxh5+ {[%clk 0:00:30.1]}
22... Qxh5 {[%clk 0:00:18.1]} 23. Bxh5 {[%clk 0:00:30.6]} 23... Nxf5 {[%clk
0:00:17.3]} 24. fxg5 {[%clk 0:00:27.9]} 24... Nxg3 {[%clk 0:00:16.4]} 25. Bg4
{[%clk 0:00:19.4]} 25... f5 {[%clk 0:00:15.4]} 26. Bf3 {[%clk 0:00:18.4]} 26...
e4 {[%clk 0:00:15.1]} 27. Bg2 {[%clk 0:00:15.2]} 27... Nxf1 {[%clk 0:00:13]} 28.
Kxf1 {[%clk 0:00:16.1]} 28... d5 {[%clk 0:00:12]} 29. cxd5 {[%clk 0:00:12.7]}
29... cxd5 {[%clk 0:00:12.9]} 30. dxe4 {[%clk 0:00:11.9]} 30... fxe4+ {[%clk
0:00:12.7]} 31. Ke2 {[%clk 0:00:12.3]} 31... Rac8 {[%clk 0:00:12.9]} 32. Rb3
{[%clk 0:00:12.3]} 32... Ne7 {[%clk 0:00:13.3]} 33. Bh3 {[%clk 0:00:10.5]} 33...
Rc6 {[%clk 0:00:11.4]} 34. Ba3 {[%clk 0:00:10]} 34... Rf7 {[%clk 0:00:09.4]} 35.
Bg4 {[%clk 0:00:09.9]} 35... Ng6 {[%clk 0:00:09.7]} 36. h5 {[%clk 0:00:10.1]}
36... Nf4+ {[%clk 0:00:08.9]} 37. Kd2 {[%clk 0:00:10.7]} 37... Kg7 {[%clk
0:00:08.6]} 38. Rb5 {[%clk 0:00:05.8]} 38... Nd3 {[%clk 0:00:04.8]} 39. Be2
{[%clk 0:00:03.7]} 39... Nc5 {[%clk 0:00:05.7]} 40. c4 {[%clk 0:00:03.4]} 40...
d4 {[%clk 0:00:05.5]} 41. Bb2 {[%clk 0:00:04.3]} 41... e3+ {[%clk 0:00:06.2]}
42. Kc2 {[%clk 0:00:03.7]} 42... Rd7 {[%clk 0:00:07.1]} 43. Bd3 {[%clk
0:00:04.3]} 43... Re6 {[%clk 0:00:07.3]} 44. Ba3 {[%clk 0:00:04.1]} 44... e2
{[%clk 0:00:07.7]} 45. Bb4 {[%clk 0:00:02.9]} 45... e1=Q {[%clk 0:00:07.8]} 46.
Bxe1 {[%clk 0:00:03.6]} 46... Rxe1 {[%clk 0:00:08.7]} 47. h6+ {[%clk 0:00:04.3]}
47... Kg8 {[%clk 0:00:08.3]} 48. g6 {[%clk 0:00:05]} 48... Rf1 {[%clk
0:00:08.8]} 49. Bxf1 {[%clk 0:00:05]} 49... Re7 {[%clk 0:00:08.9]} 50. Bd3
{[%clk 0:00:05]} 50... Re3 {[%clk 0:00:09.4]} 51. Bf5 {[%clk 0:00:04.4]} 51...
Rf3 {[%clk 0:00:09.1]} 52. Bg4 {[%clk 0:00:04]} 52... Rf2+ {[%clk 0:00:10]} 53.
Kd1 {[%clk 0:00:04.1]} 53... d3 {[%clk 0:00:10.7]} 54. Rb2 {[%clk 0:00:04.2]}
54... Rf1+ {[%clk 0:00:10.4]} 55. Kd2 {[%clk 0:00:03.5]} 55... Rg1 {[%clk
0:00:11]} 56. Ke3 {[%clk 0:00:04]} 56... Rxg4 {[%clk 0:00:11.1]} 57. h7+ {[%clk
0:00:04.4]} 57... Kh8 {[%clk 0:00:10.8]} 58. Rg2 {[%clk 0:00:03]} 58... Rxg2
{[%clk 0:00:10.7]} 0-1

[Event "Early-Titled-Tuesday-Blitz-February-13-2024"]
[Site "Chess.com"]
[Date "2024.02.13"]
[Round "5"]
[White "MikeSailer"]
[Black "Schattman"]
[Result "0-1"]
[WhiteElo "2172"]
[BlackElo "2390"]
[TimeControl "180+1"]
[EndTime "9:00:45 PST"]
[Termination "Schattman won on time"]

1. d4 {[%clk 0:03:00.3]} 1... e6 {[%clk 0:02:54.4]} 2. Nf3 {[%clk 0:02:59.4]}
2... Nf6 {[%clk 0:02:50.5]} 3. Bg5 {[%clk 0:02:58]} 3... h6 {[%clk 0:02:50.9]}
4. Bh4 {[%clk 0:02:57.3]} 4... Be7 {[%clk 0:02:49.3]} 5. Nbd2 {[%clk 0:02:55.9]}
5... d5 {[%clk 0:02:49.2]} 6. e3 {[%clk 0:02:54.6]} 6... O-O {[%clk 0:02:48.8]}
7. Bd3 {[%clk 0:02:53.5]} 7... b6 {[%clk 0:02:48.1]} 8. O-O {[%clk 0:02:49]}
8... Bb7 {[%clk 0:02:48.4]} 9. c3 {[%clk 0:02:48.4]} 9... Nbd7 {[%clk
0:02:47.6]} 10. a4 {[%clk 0:02:43.1]} 10... a5 {[%clk 0:02:46.7]} 11. Rc1 {[%clk
0:02:27.3]} 11... Ne4 {[%clk 0:02:46.4]} 12. Bxe7 {[%clk 0:02:26.3]} 12... Qxe7
{[%clk 0:02:46.6]} 13. Qc2 {[%clk 0:02:22.2]} 13... f5 {[%clk 0:02:45.1]} 14.
Ne5 {[%clk 0:02:21.5]} 14... Nxe5 {[%clk 0:02:42.4]} 15. dxe5 {[%clk 0:02:21.5]}
15... c5 {[%clk 0:02:38.4]} 16. f3 {[%clk 0:02:18.5]} 16... Nxd2 {[%clk
0:02:14.7]} 17. Qxd2 {[%clk 0:02:18.2]} 17... Qc7 {[%clk 0:02:09.4]} 18. Bb5
{[%clk 0:02:13.6]} 18... Qxe5 {[%clk 0:02:05.9]} 19. f4 {[%clk 0:02:04.8]} 19...
Qc7 {[%clk 0:02:01.3]} 20. Rfd1 {[%clk 0:02:04.6]} 20... Bc6 {[%clk 0:02:01.1]}
21. b3 {[%clk 0:01:58.2]} 21... Bxb5 {[%clk 0:01:57.4]} 22. axb5 {[%clk
0:01:57.9]} 22... Rfd8 {[%clk 0:01:56.6]} 23. h3 {[%clk 0:01:55.2]} 23... a4
{[%clk 0:01:53.1]} 24. bxa4 {[%clk 0:01:46.2]} 24... Rxa4 {[%clk 0:01:52.3]} 25.
Ra1 {[%clk 0:01:46.4]} 25... Rda8 {[%clk 0:01:49.8]} 26. Qb2 {[%clk 0:01:43.7]}
26... Qa7 {[%clk 0:01:43.6]} 27. Rxa4 {[%clk 0:01:35.6]} 27... Qxa4 {[%clk
0:01:42.8]} 28. Qe2 {[%clk 0:01:16.5]} 28... Qe4 {[%clk 0:01:29.6]} 29. Kh2
{[%clk 0:01:09]} 29... Kh7 {[%clk 0:01:23.9]} 30. Qe1 {[%clk 0:01:00]} 30... Ra2
{[%clk 0:01:20.4]} 31. Rd2 {[%clk 0:00:55.2]} 31... Ra5 {[%clk 0:00:53.2]} 32.
Rb2 {[%clk 0:00:54.7]} 32... d4 {[%clk 0:00:53.1]} 33. cxd4 {[%clk 0:00:52.4]}
33... cxd4 {[%clk 0:00:52.7]} 34. Re2 {[%clk 0:00:37.2]} 34... d3 {[%clk
0:00:47.7]} 35. Rb2 {[%clk 0:00:36.4]} 35... e5 {[%clk 0:00:40.3]} 36. Qd2
{[%clk 0:00:22.9]} 36... g5 {[%clk 0:00:36.2]} 37. fxg5 {[%clk 0:00:21.1]} 37...
hxg5 {[%clk 0:00:35.9]} 38. Rb4 {[%clk 0:00:16]} 38... Qd5 {[%clk 0:00:32.4]}
39. e4 {[%clk 0:00:04.1]} 39... fxe4 {[%clk 0:00:17.9]} 40. Qxg5 {[%clk
0:00:03.3]} 40... Ra7 {[%clk 0:00:17.2]} 41. Qh5+ {[%clk 0:00:02.9]} 41... Kg7
{[%clk 0:00:17.6]} 42. Qg5+ {[%clk 0:00:03.6]} 42... Kf7 {[%clk 0:00:17.1]} 43.
Qf5+ {[%clk 0:00:04.2]} 43... Kg7 {[%clk 0:00:13.3]} 44. Rxe4 {[%clk 0:00:04.7]}
44... Rf7 {[%clk 0:00:11.4]} 45. Rg4+ {[%clk 0:00:04.3]} 45... Kf8 {[%clk
0:00:10]} 46. Qc8+ {[%clk 0:00:04.7]} 46... Ke7 {[%clk 0:00:09.3]} 47. Qc7+
{[%clk 0:00:02.9]} 47... Kf6 {[%clk 0:00:08.1]} 48. Rf4+ {[%clk 0:00:01.1]}
48... Kg7 {[%clk 0:00:08]} 49. Rg4+ {[%clk 0:00:01.5]} 49... Kf6 {[%clk
0:00:08.3]} 50. Rf4+ {[%clk 0:00:01.6]} 50... exf4 {[%clk 0:00:08.1]} 51. Qxf4+
{[%clk 0:00:02.3]} 51... Ke7 {[%clk 0:00:07.9]} 52. Qe3+ {[%clk 0:00:02.5]}
52... Kd7 {[%clk 0:00:07]} 0-1

[Event "Early-Titled-Tuesday-Blitz-February-13-2024"]
[Site "Chess.com"]
[Date "2024.02.13"]
[Round "5"]
[White "BardArtem"]
[Black "JoliyRoger"]
[Result "1-0"]
[WhiteElo "2786"]
[BlackElo "2531"]
[TimeControl "180+1"]
[EndTime "9:00:46 PST"]
[Termination "BardArtem won on time"]

1. e4 {[%clk 0:03:00.9]} 1... c6 {[%clk 0:02:58.8]} 2. d4 {[%clk 0:02:48.3]}
2... d5 {[%clk 0:02:59.7]} 3. exd5 {[%clk 0:02:49.2]} 3... cxd5 {[%clk
0:02:58.2]} 4. Bd3 {[%clk 0:02:49.8]} 4... Nc6 {[%clk 0:02:58.7]} 5. c3 {[%clk
0:02:50.1]} 5... Nf6 {[%clk 0:02:53.9]} 6. h3 {[%clk 0:02:49.2]} 6... Qc7 {[%clk
0:02:49.7]} 7. Nf3 {[%clk 0:02:45.7]} 7... g6 {[%clk 0:02:47.4]} 8. O-O {[%clk
0:02:44.1]} 8... Bf5 {[%clk 0:02:47.9]} 9. Re1 {[%clk 0:02:44.8]} 9... e6 {[%clk
0:02:41.8]} 10. Bb5 {[%clk 0:02:42.4]} 10... Bxb1 {[%clk 0:02:20]} 11. Rxb1
{[%clk 0:02:39.8]} 11... Bd6 {[%clk 0:02:20.6]} 12. c4 {[%clk 0:02:29.2]} 12...
O-O {[%clk 0:02:15.8]} 13. c5 {[%clk 0:02:25.2]} 13... Be7 {[%clk 0:01:47.7]}
14. b4 {[%clk 0:02:12.7]} 14... Ne4 {[%clk 0:01:42.3]} 15. Qc2 {[%clk
0:02:01.7]} 15... f5 {[%clk 0:01:29.9]} 16. Bd3 {[%clk 0:01:46]} 16... Bf6
{[%clk 0:01:25.7]} 17. Qb2 {[%clk 0:01:39.7]} 17... e5 {[%clk 0:01:09.1]} 18.
Qb3 {[%clk 0:01:28.6]} 18... Rad8 {[%clk 0:01:02.5]} 19. dxe5 {[%clk 0:01:24.8]}
19... Nxe5 {[%clk 0:00:58.6]} 20. Nxe5 {[%clk 0:01:25]} 20... Qxe5 {[%clk
0:00:32.8]} 21. Be3 {[%clk 0:01:03.7]} 21... Qc7 {[%clk 0:00:23.3]} 22. Bxe4
{[%clk 0:00:55.2]} 22... fxe4 {[%clk 0:00:22.7]} 23. Rbd1 {[%clk 0:00:55.9]}
23... Qf7 {[%clk 0:00:20.4]} 24. b5 {[%clk 0:00:31.9]} 24... d4 {[%clk
0:00:20.5]} 25. Bf4 {[%clk 0:00:24.3]} 25... Rfe8 {[%clk 0:00:12.8]} 26. Bd6
{[%clk 0:00:17.8]} 26... d3 {[%clk 0:00:12.2]} 27. Kf1 {[%clk 0:00:10.3]} 27...
Kg7 {[%clk 0:00:11.5]} 28. Qxf7+ {[%clk 0:00:10.4]} 28... Kxf7 {[%clk
0:00:11.4]} 29. Rb1 {[%clk 0:00:07.3]} 29... Rd7 {[%clk 0:00:11]} 30. a4 {[%clk
0:00:07.2]} 30... b6 {[%clk 0:00:10.4]} 31. Red1 {[%clk 0:00:02.5]} 31... Bd4
{[%clk 0:00:09.7]} 32. Rbc1 {[%clk 0:00:03.1]} 32... Bxc5 {[%clk 0:00:07.8]} 33.
Bxc5 {[%clk 0:00:04]} 33... bxc5 {[%clk 0:00:08.3]} 34. Rxc5 {[%clk 0:00:04.9]}
34... Re6 {[%clk 0:00:07.7]} 35. Rc4 {[%clk 0:00:05.1]} 35... Kf6 {[%clk
0:00:07.5]} 36. Ke1 {[%clk 0:00:05.6]} 36... h5 {[%clk 0:00:07]} 37. Kd2 {[%clk
0:00:06]} 37... Kf5 {[%clk 0:00:06.5]} 38. Re1 {[%clk 0:00:06.4]} 38... g5
{[%clk 0:00:05.4]} 39. f3 {[%clk 0:00:06.8]} 39... exf3 {[%clk 0:00:04.8]} 40.
Rc5+ {[%clk 0:00:06.6]} 40... Kf6 {[%clk 0:00:02.9]} 41. Rxe6+ {[%clk
0:00:07.5]} 41... Kxe6 {[%clk 0:00:03.1]} 42. gxf3 {[%clk 0:00:08.4]} 42... Kf6
{[%clk 0:00:03.1]} 43. a5 {[%clk 0:00:09.1]} 43... Rb7 {[%clk 0:00:02.6]} 44.
Kxd3 {[%clk 0:00:08.4]} 44... h4 {[%clk 0:00:01.7]} 45. Kc4 {[%clk 0:00:08.7]}
45... Re7 {[%clk 0:00:01.7]} 46. b6 {[%clk 0:00:08.7]} 46... axb6 {[%clk
0:00:01.8]} 47. axb6 {[%clk 0:00:09.6]} 47... Re1 {[%clk 0:00:01.9]} 48. b7
{[%clk 0:00:09.7]} 48... Rc1+ {[%clk 0:00:02.5]} 49. Kb5 {[%clk 0:00:09.9]}
49... Rb1+ {[%clk 0:00:03]} 50. Kc6 {[%clk 0:00:10.7]} 50... Ke6 {[%clk
0:00:01.9]} 51. Rb5 {[%clk 0:00:09.4]} 51... g4 {[%clk 0:00:02.8]} 52. Rxb1
{[%clk 0:00:09.1]} 1-0

[Event "Early-Titled-Tuesday-Blitz-February-13-2024"]
[Site "Chess.com"]
[Date "2024.02.13"]
[Round "5"]
[White "amanjazu"]
[Black "Mikasinski"]
[Result "1-0"]
[WhiteElo "2520"]
[BlackElo "2644"]
[TimeControl "180+1"]
[EndTime "9:00:46 PST"]
[Termination "amanjazu won on time"]

1. g3 {[%clk 0:02:58.5]} 1... e5 {[%clk 0:03:00.1]} 2. Bg2 {[%clk 0:02:59.4]}
2... Nc6 {[%clk 0:03:00.7]} 3. c4 {[%clk 0:02:58.6]} 3... Nf6 {[%clk 0:02:59.9]}
4. Nc3 {[%clk 0:02:59.2]} 4... Bc5 {[%clk 0:02:59.2]} 5. e3 {[%clk 0:02:59.6]}
5... O-O {[%clk 0:02:59.4]} 6. Nge2 {[%clk 0:03:00.3]} 6... Re8 {[%clk
0:02:59.7]} 7. O-O {[%clk 0:03:00.7]} 7... d6 {[%clk 0:02:59.8]} 8. d4 {[%clk
0:03:00.5]} 8... exd4 {[%clk 0:03:00.7]} 9. exd4 {[%clk 0:03:01.4]} 9... Bb6
{[%clk 0:03:01.4]} 10. h3 {[%clk 0:02:59.6]} 10... Bf5 {[%clk 0:03:01.6]} 11.
Be3 {[%clk 0:02:53.6]} 11... h6 {[%clk 0:02:55.8]} 12. a3 {[%clk 0:02:51.6]}
12... Qd7 {[%clk 0:02:55.3]} 13. Kh2 {[%clk 0:02:50.9]} 13... a5 {[%clk
0:02:43.5]} 14. b3 {[%clk 0:02:41.7]} 14... Ne4 {[%clk 0:02:36.4]} 15. d5 {[%clk
0:01:58.7]} 15... Nb8 {[%clk 0:01:36.9]} 16. Bxb6 {[%clk 0:01:54.9]} 16... cxb6
{[%clk 0:01:35.2]} 17. Nxe4 {[%clk 0:00:59.1]} 17... Bxe4 {[%clk 0:01:35]} 18.
Bxe4 {[%clk 0:01:00]} 18... Rxe4 {[%clk 0:01:35]} 19. Nc3 {[%clk 0:01:00.9]}
19... Re5 {[%clk 0:01:32.2]} 20. Qd4 {[%clk 0:00:59.9]} 20... Na6 {[%clk
0:01:26.5]} 21. f4 {[%clk 0:00:57.9]} 21... Rh5 {[%clk 0:01:24]} 22. h4 {[%clk
0:00:55.6]} 22... Nc5 {[%clk 0:01:21.9]} 23. Qd1 {[%clk 0:00:50.7]} 23... Rf5
{[%clk 0:01:18.1]} 24. b4 {[%clk 0:00:48]} 24... axb4 {[%clk 0:01:17.7]} 25.
axb4 {[%clk 0:00:48.9]} 25... Rxa1 {[%clk 0:01:18]} 26. Qxa1 {[%clk 0:00:49.4]}
26... Nd3 {[%clk 0:01:18.7]} 27. Qb1 {[%clk 0:00:43.7]} 27... Nxf4 {[%clk
0:01:09.6]} 28. Rxf4 {[%clk 0:00:43.6]} 28... Rxf4 {[%clk 0:01:09.9]} 29. gxf4
{[%clk 0:00:44.5]} 29... Qg4 {[%clk 0:01:10.5]} 30. Qe4 {[%clk 0:00:35.3]} 30...
Qxh4+ {[%clk 0:01:09.2]} 31. Kg2 {[%clk 0:00:35.9]} 31... Qg4+ {[%clk
0:01:06.1]} 32. Kf2 {[%clk 0:00:36.5]} 32... Qh4+ {[%clk 0:01:06.4]} 33. Ke2
{[%clk 0:00:36.6]} 33... Qg3 {[%clk 0:00:59.8]} 34. Qe3 {[%clk 0:00:35.2]} 34...
Qg2+ {[%clk 0:00:58.6]} 35. Qf2 {[%clk 0:00:30]} 35... Qg6 {[%clk 0:00:58.9]}
36. f5 {[%clk 0:00:26.4]} 36... Qg4+ {[%clk 0:00:59.3]} 37. Kd3 {[%clk
0:00:26.7]} 37... h5 {[%clk 0:00:58.1]} 38. Qxb6 {[%clk 0:00:25.5]} 38... Qxf5+
{[%clk 0:00:58]} 39. Ne4 {[%clk 0:00:25.5]} 39... Qf3+ {[%clk 0:00:52.1]} 40.
Qe3 {[%clk 0:00:24.9]} 40... Qd1+ {[%clk 0:00:50.4]} 41. Qd2 {[%clk 0:00:23.3]}
41... Qb1+ {[%clk 0:00:45.7]} 42. Kd4 {[%clk 0:00:23.7]} 42... Qa1+ {[%clk
0:00:41.2]} 43. Nc3 {[%clk 0:00:24.2]} 43... h4 {[%clk 0:00:39.2]} 44. c5 {[%clk
0:00:23.1]} 44... h3 {[%clk 0:00:39.8]} 45. cxd6 {[%clk 0:00:21.7]} 45... Qg1+
{[%clk 0:00:40.2]} 46. Kc4 {[%clk 0:00:18.6]} 46... h2 {[%clk 0:00:30.3]} 47. d7
{[%clk 0:00:19]} 47... Qg4+ {[%clk 0:00:22.2]} 48. Kb3 {[%clk 0:00:16.3]} 48...
h1=Q {[%clk 0:00:19.2]} 49. d8=Q+ {[%clk 0:00:16.3]} 49... Kh7 {[%clk
0:00:19.9]} 50. Qd3+ {[%clk 0:00:16.6]} 50... f5 {[%clk 0:00:17]} 51. Qf8 {[%clk
0:00:12.9]} 51... Qhh5 {[%clk 0:00:08.7]} 52. d6 {[%clk 0:00:12.7]} 52... Qh6
{[%clk 0:00:06.4]} 53. d7 {[%clk 0:00:08.8]} 53... Qe6+ {[%clk 0:00:06.5]} 54.
Ka3 {[%clk 0:00:09.5]} 1-0

[Event "Early-Titled-Tuesday-Blitz-February-13-2024"]
[Site "Chess.com"]
[Date "2024.02.13"]
[Round "5"]
[White "ChessLover0108"]
[Black "alexrustemov"]
[Result "0-1"]
[WhiteElo "2989"]
[BlackElo "2832"]
[TimeControl "180+1"]
[EndTime "9:00:48 PST"]
[Termination "alexrustemov won on time"]

1. d4 {[%clk 0:03:00.9]} 1... d5 {[%clk 0:02:59.8]} 2. c4 {[%clk 0:02:57.7]}
2... e6 {[%clk 0:03:00]} 3. Nc3 {[%clk 0:02:56.9]} 3... Be7 {[%clk 0:03:00.4]}
4. cxd5 {[%clk 0:02:56.5]} 4... exd5 {[%clk 0:02:59.8]} 5. Bf4 {[%clk
0:02:57.4]} 5... c6 {[%clk 0:03:00.3]} 6. e3 {[%clk 0:02:52]} 6... Bf5 {[%clk
0:02:59.7]} 7. Nge2 {[%clk 0:02:45.7]} 7... Bd6 {[%clk 0:02:50.2]} 8. Qb3 {[%clk
0:02:07.1]} 8... b6 {[%clk 0:02:46.1]} 9. Ng3 {[%clk 0:01:52.4]} 9... Be6 {[%clk
0:02:39.6]} 10. Bxd6 {[%clk 0:01:33.1]} 10... Qxd6 {[%clk 0:02:40.5]} 11. Bd3
{[%clk 0:01:34]} 11... Nf6 {[%clk 0:02:39.7]} 12. O-O {[%clk 0:01:34.7]} 12...
O-O {[%clk 0:02:39.4]} 13. Rac1 {[%clk 0:01:35.4]} 13... Nbd7 {[%clk 0:02:37.2]}
14. Rfd1 {[%clk 0:01:33.2]} 14... g6 {[%clk 0:02:24.4]} 15. Nge2 {[%clk
0:01:18.8]} 15... a6 {[%clk 0:02:20]} 16. Na4 {[%clk 0:01:15.8]} 16... c5 {[%clk
0:02:13.4]} 17. dxc5 {[%clk 0:01:09.7]} 17... bxc5 {[%clk 0:02:13.5]} 18. Qa3
{[%clk 0:01:09.6]} 18... Rfc8 {[%clk 0:02:12.1]} 19. h3 {[%clk 0:00:58.1]} 19...
Qf8 {[%clk 0:01:53.7]} 20. Nf4 {[%clk 0:00:49]} 20... c4 {[%clk 0:01:53.7]} 21.
Qxf8+ {[%clk 0:00:45.7]} 21... Kxf8 {[%clk 0:01:54.6]} 22. Be2 {[%clk 0:00:39]}
22... Rab8 {[%clk 0:01:49.6]} 23. Bf3 {[%clk 0:00:27.8]} 23... Nb6 {[%clk
0:01:36]} 24. Nc3 {[%clk 0:00:18.2]} 24... Rc5 {[%clk 0:01:27.8]} 25. Rd2 {[%clk
0:00:18.1]} 25... Ke7 {[%clk 0:01:22.6]} 26. Rcd1 {[%clk 0:00:18.3]} 26... a5
{[%clk 0:01:17.7]} 27. h4 {[%clk 0:00:17.2]} 27... h6 {[%clk 0:01:17.1]} 28.
Nfe2 {[%clk 0:00:16.1]} 28... g5 {[%clk 0:01:14.6]} 29. hxg5 {[%clk 0:00:17]}
29... hxg5 {[%clk 0:01:15.3]} 30. Nd4 {[%clk 0:00:17.7]} 30... g4 {[%clk
0:01:07.7]} 31. Be2 {[%clk 0:00:17.9]} 31... Bd7 {[%clk 0:01:00]} 32. Rc1 {[%clk
0:00:08.9]} 32... Nc8 {[%clk 0:00:57.2]} 33. Bf1 {[%clk 0:00:04.8]} 33... Nd6
{[%clk 0:00:57.4]} 34. g3 {[%clk 0:00:05]} 34... Nfe4 {[%clk 0:00:52]} 35. Nxe4
{[%clk 0:00:05.1]} 35... Nxe4 {[%clk 0:00:52.1]} 36. Rdc2 {[%clk 0:00:06]} 36...
Nd6 {[%clk 0:00:34.9]} 37. Bg2 {[%clk 0:00:05.9]} 37... Nf5 {[%clk 0:00:28.9]}
38. Ne2 {[%clk 0:00:06.2]} 38... Be6 {[%clk 0:00:20.9]} 39. Nc3 {[%clk
0:00:06.3]} 39... Kd6 {[%clk 0:00:12]} 40. Rd2 {[%clk 0:00:05.3]} 40... Ke5
{[%clk 0:00:12.6]} 41. Rcd1 {[%clk 0:00:05.1]} 41... Rd8 {[%clk 0:00:12.7]} 42.
e4 {[%clk 0:00:03.1]} 42... Ne7 {[%clk 0:00:10.2]} 43. exd5 {[%clk 0:00:03.6]}
43... Nxd5 {[%clk 0:00:10.5]} 44. Re2+ {[%clk 0:00:02.7]} 44... Kf5 {[%clk
0:00:09.4]} 45. Ne4 {[%clk 0:00:03.1]} 45... Rcc8 {[%clk 0:00:06.4]} 46. Rd4
{[%clk 0:00:03.7]} 46... c3 {[%clk 0:00:05.4]} 47. bxc3 {[%clk 0:00:02.7]} 47...
Nxc3 {[%clk 0:00:05.5]} 48. Nxc3 {[%clk 0:00:01.5]} 48... Rxd4 {[%clk
0:00:04.6]} 49. Ne4 {[%clk 0:00:02.4]} 49... Rc1+ {[%clk 0:00:04.4]} 50. Kh2
{[%clk 0:00:02.9]} 50... Bd5 {[%clk 0:00:03.2]} 51. Nd6+ {[%clk 0:00:02.4]}
51... Kg6 {[%clk 0:00:03.7]} 52. Bxd5 {[%clk 0:00:01.2]} 52... Rxd5 {[%clk
0:00:03.9]} 53. Ne4 {[%clk 0:00:02]} 53... Rdd1 {[%clk 0:00:04]} 0-1